Workbook

Sheet Formuły
A1: Dane do symulacji
A2: k1 | B2: 0.05
A3: k2 | B3: 200
A4: [I-]0 = x(0) | B4: 1.5
A5: [I2]0 = y(0) | B5: 0.05
A6: [S2O32-]0 = z(0) | B6: 3
A7: dt | B7: 0.003
C9: Wyniki obliczeń (stężenia składników w funkcji czasu)
B10: Symbol chem. | C10: [I-] | D10: [I2] | E10: [S2O32-]
B11: t | C11: x(t) | D11: y(t) | E11: z(t)
A12: War. pocz. | B12: 0 | C12: =B4 -> 1.5 | D12: =B5 -> 0.05 | E12: =B6 -> 3
B13: =B12+$B$7 -> 0.003 | C13: =C12+$B$7*($B$3*E12*D12-$B$2*C12) -> 1.589775 | D13: =D12+$B$7*($B$2*C12-$B$3*E12*D12) -> -0.039775 | E13: =E12+$B$7*(-$B$3*E12*D12) -> 2.91
B14: =B13+$B$7 -> 0.006 | C14: =C13+$B$7*($B$3*E13*D13-$B$2*C13) -> 1.520089384 | D14: =D13+$B$7*($B$2*C13-$B$3*E13*D13) -> 0.02991061625 | E14: =E13+$B$7*(-$B$3*E13*D13) -> 2.97944715
B15: 0.009 | C15: 1.573331631 | D15: -0.02333163055 | E15: 2.92597689
B16: 0.012 | C16: 1.532134944 | D16: 0.01786505627 | E16: 2.966937577
B17: 0.015 | C17: 1.563707828 | D17: -0.01370782754 | E17: 2.935134873
B18: 0.018 | C18: 1.539332678 | D18: 0.01066732222 | E18: 2.959275466
B19: 0.021 | C19: 1.558042305 | D19: -0.008042304842 | E19: 2.940334939
B20: 0.024 | C20: 1.543620357 | D20: 0.006379643456 | E20: 2.954523181
B21: 0.027 | C21: 1.554698096 | D21: -0.004698096179 | E21: 2.943213899
B22: 0.03 | C22: 1.54616839 | D22: 0.003831609718 | E22: 2.9515104
B23: 0.033 | C23: 1.552721887 | D23: -0.002721886582 | E23: 2.944724978
B24: 0.036 | C24: 1.547679854 | D24: 0.002320146145 | E24: 2.949534103
B25: 0.039 | C25: 1.551553712 | D25: -0.001553711984 | E25: 2.945428093
B26: 0.042 | C26: 1.548575171 | D26: 0.001424829228 | E26: 2.948173901
B27: 0.045 | C27: 1.550863271 | D27: -0.0008632711021 | E27: 2.945653514
B28: 0.048 | C28: 1.549104903 | D28: 0.0008950969219 | E28: 2.947179253
B29: 0.051 | C29: 1.550455344 | D29: -0.0004553439891 | E29: 2.945596446
B30: 0.054 | C30: 1.54941802 | D30: 0.0005819800941 | E30: 2.946401202
B31: 0.057 | C31: 1.550214455 | D31: -0.0002144553122 | E31: 2.945372354
B32: 0.06 | C32: 1.549602933 | D32: 0.0003970673047 | E32: 2.945751344
B33: 0.063 | C33: 1.550072289 | D33: -7.228918333e-05 | E33: 2.945049547
B34: 0.066 | C34: 1.549712041 | D34: 0.000287958796 | E34: 2.945177284
B35: 0.069 | C35: 1.549988438 | D35: 1.156177926e-05 | E35: 2.944668431
B36: 0.072 | C36: 1.549776367 | D36: 0.0002236326812 | E36: 2.944648003
B37: 0.075 | C37: 1.549939013 | D37: 6.098741944e-05 | E37: 2.944252892
B38: 0.078 | C38: 1.549814259 | D38: 0.0001857408397 | E38: 2.944145154
B39: 0.081 | C39: 1.549909896 | D39: 9.010418269e-05 | E39: 2.943817045
B40: 0.084 | C40: 1.549836559 | D40: 0.0001634405297 | E40: 2.943657895
B41: 0.087 | C41: 1.549892752 | D41: 0.0001072482102 | E41: 2.943369227
B42: 0.09 | C42: 1.549849671 | D42: 0.000150329474 | E42: 2.943179825
B43: 0.093 | C43: 1.549882661 | D43: 0.0001173389196 | E43: 2.942914357
B44: 0.096 | C44: 1.54985737 | D44: 0.0001426302841 | E44: 2.942707166
B45: 0.099 | C45: 1.549876723 | D45: 0.0001232773941 | E45: 2.942455334
B46: 0.102 | C46: 1.549861884 | D46: 0.000138115967 | E46: 2.942237691
B47: 0.105 | C47: 1.549873227 | D47: 0.0001267732473 | E47: 2.941993869
B48: 0.108 | C48: 1.549864525 | D48: 0.0001354745615 | E48: 2.94177009
B49: 0.111 | C49: 1.549871167 | D49: 0.0001288332326 | E49: 2.941530969
B50: 0.114 | C50: 1.549866066 | D50: 0.0001339337416 | E50: 2.941303588
B51: 0.117 | C51: 1.54986995 | D51: 0.0001300497747 | E51: 2.941067225
B52: 0.12 | C52: 1.549866961 | D52: 0.0001330391893 | E52: 2.940837733
B53: 0.123 | C53: 1.549869229 | D53: 0.0001307712327 | E53: 2.940602985
B54: 0.126 | C54: 1.549867476 | D54: 0.0001325238507 | E54: 2.940372258
B55: 0.129 | C55: 1.549868798 | D55: 0.0001312022997 | E55: 2.940138456
B56: 0.132 | C56: 1.549867769 | D56: 0.0001322308632 | E56: 2.939907004
B57: 0.135 | C57: 1.549868537 | D57: 0.000131463164 | E57: 2.939673756
B58: 0.138 | C58: 1.549867932 | D58: 0.0001320681566 | E58: 2.939441881
B59: 0.141 | C59: 1.549868376 | D59: 0.000131624344 | E59: 2.939208957
B60: 0.144 | C60: 1.549868018 | D60: 0.0001319817299 | E60: 2.938976834
B61: 0.147 | C61: 1.549868273 | D61: 0.0001317271846 | E61: 2.938744099
B62: 0.15 | C62: 1.54986806 | D62: 0.0001319399336 | E62: 2.938511832
B63: 0.153 | C63: 1.549868204 | D63: 0.000131795909 | E63: 2.938279208
B64: 0.156 | C64: 1.549868076 | D64: 0.0001319242322 | E64: 2.938046856
B65: 0.159 | C65: 1.549868155 | D65: 0.0001318446982 | E65: 2.937814296
B66: 0.162 | C66: 1.549868076 | D66: 0.0001319237779 | E66: 2.937581895
B67: 0.165 | C67: 1.549868118 | D67: 0.0001318818484 | E67: 2.937349373
B68: 0.168 | C68: 1.549868068 | D68: 0.0001319322273 | E68: 2.937116943
B69: 0.171 | C69: 1.549868088 | D69: 0.0001319122094 | E69: 2.936884443
B70: 0.174 | C70: 1.549868054 | D70: 0.0001319458732 | E70: 2.936651996
B71: 0.177 | C71: 1.549868061 | D71: 0.0001319386142 | E71: 2.936419509
B72: 0.18 | C72: 1.549868037 | D72: 0.000131962551 | E72: 2.936187052
B73: 0.183 | C73: 1.549868037 | D73: 0.0001319627164 | E73: 2.935954572
B74: 0.186 | C74: 1.549868019 | D74: 0.0001319809976 | E74: 2.93572211
B75: 0.189 | C75: 1.549868015 | D75: 0.0001319854807 | E75: 2.935489635
B76: 0.192 | C76: 1.549868 | D76: 0.0001320004765 | E76: 2.93525717
B77: 0.195 | C77: 1.549867993 | D77: 0.0001320074694 | E77: 2.935024696
B78: =B77+$B$7 -> 0.198 | C78: =C77+$B$7*($B$3*E77*D77-$B$2*C77) -> 1.549867979 | D78: =D77+$B$7*($B$2*C77-$B$3*E77*D77) -> 0.0001320205586 | E78: =E77+$B$7*(-$B$3*E77*D77) -> 2.934792229
B79: 0.201 | C79: 1.549867971 | D79: 0.0001320290098 | E79: 2.934559757
B80: 0.204 | C80: 1.549867959 | D80: 0.000132040994 | E80: 2.934327289
B81: 0.207 | C81: 1.54986795 | D81: 0.0001320502926 | E81: 2.934094818
B82: 0.21 | C82: 1.549867938 | D82: 0.0001320616375 | E82: 2.93386235
B83: 0.213 | C83: 1.549867929 | D83: 0.0001320714286 | E83: 2.933629879
B84: 0.216 | C84: 1.549867918 | D84: 0.0001320824044 | E84: 2.93339741
B85: 0.219 | C85: 1.549867908 | D85: 0.0001320924823 | E85: 2.93316494
B86: 0.222 | C86: 1.549867897 | D86: 0.0001321032457 | E86: 2.93293247
B87: 0.225 | C87: 1.549867887 | D87: 0.0001321134909 | E87: 2.9327
B88: 0.228 | C88: 1.549867876 | D88: 0.0001321241329 | E88: 2.932467531
B89: 0.231 | C89: 1.549867866 | D89: 0.0001321344764 | E89: 2.932235061
B90: 0.234 | C90: 1.549867855 | D90: 0.0001321450496 | E90: 2.932002591
B91: 0.237 | C91: 1.549867845 | D91: 0.0001321554511 | E91: 2.931770122
B92: 0.24 | C92: 1.549867834 | D92: 0.000132165986 | E92: 2.931537652
B93: 0.243 | C93: 1.549867824 | D93: 0.0001321764226 | E93: 2.931305182
B94: 0.246 | C94: 1.549867813 | D94: 0.0001321869366 | E94: 2.931072713
B95: 0.249 | C95: 1.549867803 | D95: 0.0001321973948 | E95: 2.930840243
B96: 0.252 | C96: 1.549867792 | D96: 0.0001322078984 | E96: 2.930607773
B97: 0.255 | C97: 1.549867782 | D97: 0.0001322183704 | E97: 2.930375304
B98: 0.258 | C98: 1.549867771 | D98: 0.0001322288693 | E98: 2.930142834
B99: 0.261 | C99: 1.549867761 | D99: 0.0001322393507 | E99: 2.929910364
B100: 0.264 | C100: 1.54986775 | D100: 0.0001322498483 | E100: 2.929677895
B101: 0.267 | C101: 1.54986774 | D101: 0.0001322603366 | E101: 2.929445425
B102: 0.27 | C102: 1.549867729 | D102: 0.0001322708348 | E102: 2.929212955
B103: 0.273 | C103: 1.549867719 | D103: 0.0001322813284 | E103: 2.928980486
B104: 0.276 | C104: 1.549867708 | D104: 0.0001322918285 | E104: 2.928748016
B105: 0.279 | C105: 1.549867698 | D105: 0.0001323023266 | E105: 2.928515546
B106: 0.282 | C106: 1.549867687 | D106: 0.0001323128291 | E106: 2.928283077
B107: 0.285 | C107: 1.549867677 | D107: 0.0001323233312 | E107: 2.928050607
B108: 0.288 | C108: 1.549867666 | D108: 0.0001323338366 | E108: 2.927818137
B109: 0.291 | C109: 1.549867656 | D109: 0.0001323443424 | E109: 2.927585668
B110: 0.294 | C110: 1.549867645 | D110: 0.0001323548508 | E110: 2.927353198
B111: 0.297 | C111: 1.549867635 | D111: 0.0001323653601 | E111: 2.927120728
B112: 0.3 | C112: 1.549867624 | D112: 0.0001323758717 | E112: 2.926888259
B113: 0.303 | C113: 1.549867614 | D113: 0.0001323863845 | E113: 2.926655789
B114: 0.306 | C114: 1.549867603 | D114: 0.0001323968994 | E114: 2.926423319
B115: 0.309 | C115: 1.549867593 | D115: 0.0001324074156 | E115: 2.92619085
B116: 0.312 | C116: 1.549867582 | D116: 0.0001324179337 | E116: 2.92595838
B117: 0.315 | C117: 1.549867572 | D117: 0.0001324284533 | E117: 2.925725911
B118: 0.318 | C118: 1.549867561 | D118: 0.0001324389747 | E118: 2.925493441
B119: 0.321 | C119: 1.549867551 | D119: 0.0001324494977 | E119: 2.925260971
B120: 0.324 | C120: 1.54986754 | D120: 0.0001324600225 | E120: 2.925028502
B121: 0.327 | C121: 1.549867529 | D121: 0.0001324705488 | E121: 2.924796032
B122: 0.33 | C122: 1.549867519 | D122: 0.0001324810769 | E122: 2.924563563
B123: 0.333 | C123: 1.549867508 | D123: 0.0001324916066 | E123: 2.924331093
B124: 0.336 | C124: 1.549867498 | D124: 0.000132502138 | E124: 2.924098623
B125: 0.339 | C125: 1.549867487 | D125: 0.0001325126711 | E125: 2.923866154
B126: 0.342 | C126: 1.549867477 | D126: 0.0001325232058 | E126: 2.923633684
B127: 0.345 | C127: 1.549867466 | D127: 0.0001325337422 | E127: 2.923401215
B128: 0.348 | C128: 1.549867456 | D128: 0.0001325442803 | E128: 2.923168745
B129: 0.351 | C129: 1.549867445 | D129: 0.0001325548201 | E129: 2.922936275
B130: 0.354 | C130: 1.549867435 | D130: 0.0001325653616 | E130: 2.922703806
B131: 0.357 | C131: 1.549867424 | D131: 0.0001325759047 | E131: 2.922471336
B132: 0.36 | C132: 1.549867414 | D132: 0.0001325864495 | E132: 2.922238867
B133: 0.363 | C133: 1.549867403 | D133: 0.000132596996 | E133: 2.922006397
B134: 0.366 | C134: 1.549867392 | D134: 0.0001326075441 | E134: 2.921773928
B135: 0.369 | C135: 1.549867382 | D135: 0.000132618094 | E135: 2.921541458
B136: 0.372 | C136: 1.549867371 | D136: 0.0001326286455 | E136: 2.921308988
B137: 0.375 | C137: 1.549867361 | D137: 0.0001326391987 | E137: 2.921076519
B138: 0.378 | C138: 1.54986735 | D138: 0.0001326497535 | E138: 2.920844049
B139: 0.381 | C139: 1.54986734 | D139: 0.0001326603101 | E139: 2.92061158
B140: 0.384 | C140: 1.549867329 | D140: 0.0001326708683 | E140: 2.92037911
B141: 0.387 | C141: 1.549867319 | D141: 0.0001326814282 | E141: 2.920146641
B142: =B141+$B$7 -> 0.39 | C142: =C141+$B$7*($B$3*E141*D141-$B$2*C141) -> 1.549867308 | D142: =D141+$B$7*($B$2*C141-$B$3*E141*D141) -> 0.0001326919898 | E142: =E141+$B$7*(-$B$3*E141*D141) -> 2.919914171
B143: 0.393 | C143: 1.549867297 | D143: 0.0001327025531 | E143: 2.919681702
B144: 0.396 | C144: 1.549867287 | D144: 0.0001327131181 | E144: 2.919449232
B145: 0.399 | C145: 1.549867276 | D145: 0.0001327236847 | E145: 2.919216763
B146: 0.402 | C146: 1.549867266 | D146: 0.000132734253 | E146: 2.918984293
B147: 0.405 | C147: 1.549867255 | D147: 0.000132744823 | E147: 2.918751824
B148: 0.408 | C148: 1.549867245 | D148: 0.0001327553947 | E148: 2.918519354
B149: 0.411 | C149: 1.549867234 | D149: 0.0001327659681 | E149: 2.918286885
B150: 0.414 | C150: 1.549867223 | D150: 0.0001327765432 | E150: 2.918054415
B151: 0.417 | C151: 1.549867213 | D151: 0.0001327871199 | E151: 2.917821946
B152: 0.42 | C152: 1.549867202 | D152: 0.0001327976983 | E152: 2.917589476
B153: 0.423 | C153: 1.549867192 | D153: 0.0001328082784 | E153: 2.917357007
B154: 0.426 | C154: 1.549867181 | D154: 0.0001328188602 | E154: 2.917124537
B155: 0.429 | C155: 1.549867171 | D155: 0.0001328294437 | E155: 2.916892068
B156: 0.432 | C156: 1.54986716 | D156: 0.0001328400289 | E156: 2.916659598
B157: 0.435 | C157: 1.549867149 | D157: 0.0001328506157 | E157: 2.916427129
B158: 0.438 | C158: 1.549867139 | D158: 0.0001328612043 | E158: 2.916194659
B159: 0.441 | C159: 1.549867128 | D159: 0.0001328717945 | E159: 2.91596219
B160: 0.444 | C160: 1.549867118 | D160: 0.0001328823864 | E160: 2.91572972
B161: 0.447 | C161: 1.549867107 | D161: 0.00013289298 | E161: 2.915497251
B162: 0.45 | C162: 1.549867096 | D162: 0.0001329035753 | E162: 2.915264781
B163: 0.453 | C163: 1.549867086 | D163: 0.0001329141723 | E163: 2.915032312
B164: 0.456 | C164: 1.549867075 | D164: 0.000132924771 | E164: 2.914799842
B165: 0.459 | C165: 1.549867065 | D165: 0.0001329353714 | E165: 2.914567373
B166: 0.462 | C166: 1.549867054 | D166: 0.0001329459734 | E166: 2.914334903
B167: 0.465 | C167: 1.549867043 | D167: 0.0001329565772 | E167: 2.914102434
B168: 0.468 | C168: 1.549867033 | D168: 0.0001329671826 | E168: 2.913869964
B169: 0.471 | C169: 1.549867022 | D169: 0.0001329777897 | E169: 2.913637495
B170: 0.474 | C170: 1.549867012 | D170: 0.0001329883986 | E170: 2.913405026
B171: 0.477 | C171: 1.549867001 | D171: 0.0001329990091 | E171: 2.913172556
B172: 0.48 | C172: 1.54986699 | D172: 0.0001330096213 | E172: 2.912940087
B173: 0.483 | C173: 1.54986698 | D173: 0.0001330202352 | E173: 2.912707617
B174: 0.486 | C174: 1.549866969 | D174: 0.0001330308508 | E174: 2.912475148
B175: 0.489 | C175: 1.549866959 | D175: 0.0001330414681 | E175: 2.912242678
B176: 0.492 | C176: 1.549866948 | D176: 0.0001330520871 | E176: 2.912010209
B177: 0.495 | C177: 1.549866937 | D177: 0.0001330627077 | E177: 2.91177774
B178: 0.498 | C178: 1.549866927 | D178: 0.0001330733301 | E178: 2.91154527
B179: 0.501 | C179: 1.549866916 | D179: 0.0001330839542 | E179: 2.911312801
B180: 0.504 | C180: 1.549866905 | D180: 0.00013309458 | E180: 2.911080331
B181: 0.507 | C181: 1.549866895 | D181: 0.0001331052074 | E181: 2.910847862
B182: 0.51 | C182: 1.549866884 | D182: 0.0001331158366 | E182: 2.910615392
B183: 0.513 | C183: 1.549866874 | D183: 0.0001331264674 | E183: 2.910382923
B184: 0.516 | C184: 1.549866863 | D184: 0.0001331371 | E184: 2.910150454
B185: 0.519 | C185: 1.549866852 | D185: 0.0001331477343 | E185: 2.909917984
B186: 0.522 | C186: 1.549866842 | D186: 0.0001331583702 | E186: 2.909685515
B187: 0.525 | C187: 1.549866831 | D187: 0.0001331690079 | E187: 2.909453045
B188: 0.528 | C188: 1.54986682 | D188: 0.0001331796472 | E188: 2.909220576
B189: 0.531 | C189: 1.54986681 | D189: 0.0001331902883 | E189: 2.908988107
B190: 0.534 | C190: 1.549866799 | D190: 0.000133200931 | E190: 2.908755637
B191: 0.537 | C191: 1.549866788 | D191: 0.0001332115755 | E191: 2.908523168
B192: 0.54 | C192: 1.549866778 | D192: 0.0001332222216 | E192: 2.908290699
B193: 0.543 | C193: 1.549866767 | D193: 0.0001332328695 | E193: 2.908058229
B194: 0.546 | C194: 1.549866756 | D194: 0.000133243519 | E194: 2.90782576
B195: 0.549 | C195: 1.549866746 | D195: 0.0001332541703 | E195: 2.907593291
B196: 0.552 | C196: 1.549866735 | D196: 0.0001332648233 | E196: 2.907360821
B197: 0.555 | C197: 1.549866725 | D197: 0.0001332754779 | E197: 2.907128352
B198: 0.558 | C198: 1.549866714 | D198: 0.0001332861343 | E198: 2.906895882
B199: 0.561 | C199: 1.549866703 | D199: 0.0001332967924 | E199: 2.906663413
B200: 0.564 | C200: 1.549866693 | D200: 0.0001333074522 | E200: 2.906430944
B201: 0.567 | C201: 1.549866682 | D201: 0.0001333181136 | E201: 2.906198474
... 14799 more rows

Sheet VBA
A1: Dane do symulacji
A2: k1 | B2: 0.05
A3: k2 | B3: 200
A4: [I-]0 = x(0) | B4: 1.5
A5: [I2]0 = y(0) | B5: 0.05
A6: [S2O32-]0 = z(0) | B6: 3
A7: t_kon | B7: 100
A8: dt | B8: 0.001
C10: Wyniki obliczeń (stężenia składników w funkcji czasu)
B11: Symbol chem. | C11: [I-] | D11: [I2] | E11: [S2O32-]
B12: t | C12: x(t) | D12: y(t) | E12: z(t)
A13: War. pocz. | B13: 0 | C13: 1.5 | D13: 0.05 | E13: 3
B14: 0.399 | C14: 1.549867276 | D14: 0.0001327236727 | E14: 2.919217033
B15: 0.798 | C15: 1.549865856 | D15: 0.0001341441879 | E15: 2.888298615 | S15: =1000/0.003 -> 333333.3333
B16: 1.197 | C16: 1.549864405 | D16: 0.0001355954346 | E16: 2.857380257
B17: 1.596 | C17: 1.549862922 | D17: 0.0001370784211 | E17: 2.82646196
B18: 1.995 | C18: 1.549861406 | D18: 0.0001385942 | E18: 2.795543725
B19: 2.394 | C19: 1.549859856 | D19: 0.0001401438709 | E19: 2.764625555
B20: 2.793 | C20: 1.549858271 | D20: 0.0001417285833 | E20: 2.733707452
B21: 3.192 | C21: 1.54985665 | D21: 0.0001433495391 | E21: 2.702789416
B22: 3.591 | C22: 1.549854992 | D22: 0.0001450079959 | E22: 2.671871451
B23: 3.99 | C23: 1.549853295 | D23: 0.0001467052701 | E23: 2.640953558
B24: 4.389 | C24: 1.549851557 | D24: 0.0001484427405 | E24: 2.610035739
B25: 4.788 | C25: 1.549849778 | D25: 0.000150221852 | E25: 2.579117998
B26: 5.187 | C26: 1.549847956 | D26: 0.0001520441194 | E26: 2.548200335
B27: 5.586 | C27: 1.549846089 | D27: 0.000153911132 | E27: 2.517282754
B28: 5.985 | C28: 1.549844175 | D28: 0.0001558245581 | E28: 2.486365257
B29: 6.384 | C29: 1.549842214 | D29: 0.0001577861499 | E29: 2.455447846
B30: 6.783 | C30: 1.549840202 | D30: 0.000159797749 | E30: 2.424530526
B31: 7.182 | C31: 1.549838139 | D31: 0.0001618612921 | E31: 2.393613298
B32: 7.581 | C32: 1.549836021 | D32: 0.0001639788169 | E32: 2.362696165
B33: 7.98 | C33: 1.549833848 | D33: 0.0001661524696 | E33: 2.331779132
B34: 8.379 | C34: 1.549831615 | D34: 0.0001683845111 | E34: 2.300862201
B35: 8.778 | C35: 1.549829323 | D35: 0.0001706773259 | E35: 2.269945375
B36: 9.177 | C36: 1.549826967 | D36: 0.0001730334296 | E36: 2.23902866
B37: 9.576 | C37: 1.549824545 | D37: 0.000175455479 | E37: 2.208112058
B38: 9.975 | C38: 1.549822054 | D38: 0.0001779462814 | E38: 2.177195574
B39: 10.374 | C39: 1.549819491 | D39: 0.0001805088058 | E39: 2.146279212
B40: 10.773 | C40: 1.549816854 | D40: 0.0001831461947 | E40: 2.115362976
B41: 11.172 | C41: 1.549814138 | D41: 0.0001858617766 | E41: 2.084446873
B42: 11.571 | C42: 1.549811341 | D42: 0.0001886590805 | E42: 2.053530906
B43: 11.97 | C43: 1.549808458 | D43: 0.000191541851 | E43: 2.022615081
B44: 12.369 | C44: 1.549805486 | D44: 0.0001945140646 | E44: 1.991699403
B45: 12.768 | C45: 1.54980242 | D45: 0.0001975799487 | E45: 1.96078388
B46: 13.167 | C46: 1.549799256 | D46: 0.0002007440011 | E46: 1.929868517
B47: 13.566 | C47: 1.549795989 | D47: 0.0002040110123 | E47: 1.898953322
B48: 13.965 | C48: 1.549792614 | D48: 0.0002073860895 | E48: 1.8680383
B49: 14.364 | C49: 1.549789125 | D49: 0.0002108746831 | E49: 1.83712346
B50: 14.763 | C50: 1.549785517 | D50: 0.0002144826166 | E50: 1.806208811
B51: 15.162 | C51: 1.549781784 | D51: 0.0002182161182 | E51: 1.77529436
B52: 15.561 | C52: 1.549777918 | D52: 0.0002220818574 | E52: 1.744380118
B53: 15.96 | C53: 1.549773913 | D53: 0.0002260869842 | E53: 1.713466093
B54: 16.359 | C54: 1.549769761 | D54: 0.0002302391734 | E54: 1.682552297
B55: 16.758 | C55: 1.549765453 | D55: 0.0002345466736 | E55: 1.65163874
B56: 17.157 | C56: 1.549760982 | D56: 0.0002390183618 | E56: 1.620725435
B57: 17.556 | C57: 1.549756336 | D57: 0.0002436638045 | E57: 1.589812395
B58: 17.955 | C58: 1.549751507 | D58: 0.0002484933256 | E58: 1.558899633
B59: 18.354 | C59: 1.549746482 | D59: 0.0002535180834 | E59: 1.527987165
B60: 18.753 | C60: 1.54974125 | D60: 0.0002587501561 | E60: 1.497075007
B61: 19.152 | C61: 1.549735797 | D61: 0.0002642026387 | E61: 1.466163175
B62: 19.551 | C62: 1.54973011 | D62: 0.0002698897525 | E62: 1.435251689
B63: 19.95 | C63: 1.549724173 | D63: 0.0002758269684 | E63: 1.404340569
B64: 20.349 | C64: 1.549717969 | D64: 0.0002820311476 | E64: 1.373429838
B65: 20.748 | C65: 1.549711479 | D65: 0.0002885207007 | E65: 1.342519518
B66: 21.147 | C66: 1.549704684 | D66: 0.0002953157706 | E66: 1.311609636
B67: 21.546 | C67: 1.549697562 | D67: 0.00030243844 | E67: 1.28070022
B68: 21.945 | C68: 1.549690087 | D68: 0.0003099129717 | E68: 1.249791302
B69: 22.344 | C69: 1.549682234 | D69: 0.0003177660832 | E69: 1.218882916
B70: 22.743 | C70: 1.549673973 | D70: 0.0003260272658 | E70: 1.187975098
B71: 23.142 | C71: 1.549665271 | D71: 0.0003347291537 | E71: 1.15706789
B72: 23.541 | C72: 1.549656092 | D72: 0.0003439079533 | E72: 1.126161337
B73: 23.94 | C73: 1.549646396 | D73: 0.0003536039465 | E73: 1.09525549
B74: 24.339 | C74: 1.549636138 | D74: 0.0003638620791 | E74: 1.064350403
B75: 24.738 | C75: 1.549625267 | D75: 0.0003747326564 | E75: 1.03344614
B76: 25.137 | C76: 1.549613728 | D76: 0.0003862721652 | E76: 1.002542769
B77: 25.536 | C77: 1.549601456 | D77: 0.0003985442529 | E77: 0.971640368
B78: 25.935 | C78: 1.549588379 | D78: 0.0004116208979 | E78: 0.9407390243
B79: 26.334 | C79: 1.549574416 | D79: 0.0004255838179 | E79: 0.9098388365
B80: 26.733 | C80: 1.549559474 | D80: 0.0004405261724 | E80: 0.8789399162
B81: 27.132 | C81: 1.549543445 | D81: 0.0004565546362 | E81: 0.8480423907
B82: 27.531 | C82: 1.549526208 | D82: 0.0004737919388 | E82: 0.8171464057
B83: 27.93 | C83: 1.54950762 | D83: 0.0004923799993 | E83: 0.7862521285
B84: 28.329 | C84: 1.549487516 | D84: 0.0005124838234 | E84: 0.7553597526
B85: 28.728 | C85: 1.549465704 | D85: 0.0005342963899 | E85: 0.7244695033
B86: 29.127 | C86: 1.549441955 | D86: 0.0005580448301 | E86: 0.6935816438
B87: 29.526 | C87: 1.549416002 | D87: 0.0005839983184 | E87: 0.6626964846
B88: 29.925 | C88: 1.549387522 | D88: 0.000612478252 | E88: 0.6318143942
B89: 30.324 | C89: 1.549356128 | D89: 0.0006438715314 | E89: 0.6009358135
B90: 30.723 | C90: 1.549321352 | D90: 0.0006786481009 | E90: 0.5700612753
B91: 31.122 | C91: 1.549282616 | D91: 0.000717384429 | E91: 0.539191429
B92: 31.521 | C92: 1.549239205 | D92: 0.0007607954055 | E92: 0.5083270752
B93: 31.92 | C93: 1.549190222 | D93: 0.0008097783898 | E93: 0.4774692134
B94: 32.319 | C94: 1.549134525 | D94: 0.0008654751523 | E94: 0.4466191071
B95: 32.718 | C95: 1.549070639 | D95: 0.0009293607636 | E95: 0.4157783796
B96: 33.117 | C96: 1.548996626 | D96: 0.001003374102 | E96: 0.3849491513
B97: 33.516 | C97: 1.548909886 | D97: 0.001090114487 | E97: 0.3541342483
B98: 33.915 | C98: 1.548806853 | D98: 0.001193146822 | E98: 0.3233375229
B99: 34.314 | C99: 1.548682509 | D99: 0.001317491498 | E99: 0.2925643674
B100: 34.713 | C100: 1.548529557 | D100: 0.001470442651 | E100: 0.2618225691
B101: 35.112 | C101: 1.548337 | D101: 0.001662999842 | E101: 0.2311237998
B102: 35.511 | C102: 1.548087485 | D102: 0.001912515305 | E102: 0.2004863608
B103: 35.91 | C103: 1.547752074 | D103: 0.002247925502 | E103: 0.1699405867
B104: 36.309 | C104: 1.547279037 | D104: 0.002720962533 | E104: 0.1395403853
B105: 36.708 | C105: 1.546567308 | D105: 0.003432692103 | E105: 0.1093904538
B106: 37.107 | C106: 1.545395607 | D106: 0.004604392765 | E106: 0.07971872764
B107: 37.506 | C107: 1.543205597 | D107: 0.006794402946 | E107: 0.05109736797
B108: 37.905 | C108: 1.538372982 | D108: 0.01162701815 | E108: 0.02518420166
B109: 38.304 | C109: 1.526355908 | D109: 0.0236440917 | E109: 0.006612505331
B110: 38.703 | C110: 1.502329307 | D110: 0.04767069323 | E110: 0.0004095218826
B111: 39.102 | C111: 1.473054619 | D111: 0.07694538145 | E111: 2.770481559e-06
B112: 39.501 | C112: 1.443960381 | D112: 0.1060396189 | E112: 1.744686379e-09
B113: 39.9 | C113: 1.415438116 | D113: 0.1345618842 | E113: 1.04918873e-13
B114: 40.299 | C114: 1.387479243 | D114: 0.1625207565 | E114: 6.226380254e-19
B115: 40.698 | C115: 1.360072637 | D115: 0.1899273627 | E115: 3.767311026e-25
B116: 41.097 | C116: 1.333207388 | D116: 0.2167926115 | E116: 2.400430722e-32
B117: 41.496 | C117: 1.306872804 | D117: 0.2431271964 | E117: 1.663165831e-40
B118: 41.895 | C118: 1.281058401 | D118: 0.2689415993 | E118: 1.293525564e-49
B119: 42.294 | C119: 1.255753905 | D119: 0.2942460954 | E119: 1.165436074e-59
B120: 42.693 | C120: 1.230949243 | D120: 0.3190507567 | E120: 1.254966761e-70
B121: 43.092 | C121: 1.206634544 | D121: 0.3433654564 | E121: 1.665854808e-82
B122: 43.491 | C122: 1.182800127 | D122: 0.3671998726 | E122: 2.810655661e-95
B123: 43.89 | C123: 1.159436508 | D123: 0.3905634922 | E123: 6.21327931e-109
B124: 44.289 | C124: 1.136534385 | D124: 0.4134656148 | E124: 1.854496422e-123
B125: 44.688 | C125: 1.114084644 | D125: 0.4359153563 | E125: 7.699161676e-139
B126: 45.087 | C126: 1.092078348 | D126: 0.4579216524 | E126: 4.578932791e-155
B127: 45.486 | C127: 1.070506738 | D127: 0.4794932624 | E127: 4.016517181e-172
B128: 45.885 | C128: 1.049361227 | D128: 0.5006387727 | E128: 5.348478041e-190
B129: 46.284 | C129: 1.0286334 | D129: 0.5213665998 | E129: 1.112514906e-208
B130: 46.683 | C130: 1.008315006 | D130: 0.5416849942 | E130: 3.718305063e-228
B131: 47.082 | C131: 0.9883979567 | D131: 0.5616020433 | E131: 2.053452537e-248
B132: 47.481 | C132: 0.9688743251 | D132: 0.5811256749 | E132: 1.926326179e-269
B133: 47.88 | C133: 0.9497363401 | D133: 0.6002636599 | E133: 3.154666349e-291
B134: 48.279 | C134: 0.9309763839 | D134: 0.6190236161 | E134: 0
B135: 48.678 | C135: 0.9125869894 | D135: 0.6374130106 | E135: 0
B136: 49.077 | C136: 0.894560837 | D136: 0.655439163 | E136: 0
B137: 49.476 | C137: 0.8768907518 | D137: 0.6731092482 | E137: 0
B138: 49.875 | C138: 0.8595697002 | D138: 0.6904302998 | E138: 0
B139: 50.274 | C139: 0.842590788 | D139: 0.707409212 | E139: 0
B140: 50.673 | C140: 0.825947257 | D140: 0.724052743 | E140: 0
B141: 51.072 | C141: 0.8096324823 | D141: 0.7403675177 | E141: 0
B142: 51.471 | C142: 0.7936399702 | D142: 0.7563600298 | E142: 0
B143: 51.87 | C143: 0.7779633551 | D143: 0.7720366449 | E143: 0
B144: 52.269 | C144: 0.7625963971 | D144: 0.7874036029 | E144: 0
B145: 52.668 | C145: 0.7475329795 | D145: 0.8024670205 | E145: 0
B146: 53.067 | C146: 0.7327671068 | D146: 0.8172328932 | E146: 0
B147: 53.466 | C147: 0.7182929014 | D147: 0.8317070986 | E147: 0
B148: 53.865 | C148: 0.7041046022 | D148: 0.8458953978 | E148: 0
B149: 54.264 | C149: 0.6901965617 | D149: 0.8598034383 | E149: 0
B150: 54.663 | C150: 0.676563244 | D150: 0.873436756 | E150: 0
B151: 55.062 | C151: 0.6631992225 | D151: 0.8868007775 | E151: 0
B152: 55.461 | C152: 0.650099178 | D152: 0.899900822 | E152: 0
B153: 55.86 | C153: 0.637257896 | D153: 0.912742104 | E153: 0
B154: 56.259 | C154: 0.6246702654 | D154: 0.9253297346 | E154: 0
B155: 56.658 | C155: 0.6123312758 | D155: 0.9376687242 | E155: 0
B156: 57.057 | C156: 0.6002360159 | D156: 0.9497639841 | E156: 0
B157: 57.456 | C157: 0.5883796712 | D157: 0.9616203288 | E157: 0
B158: 57.855 | C158: 0.5767575226 | D158: 0.9732424774 | E158: 0
B159: 58.254 | C159: 0.5653649441 | D159: 0.9846350559 | E159: 0
B160: 58.653 | C160: 0.5541974009 | D160: 0.9958025991 | E160: 0
B161: 59.052 | C161: 0.543250448 | D161: 1.006749552 | E161: 0
B162: 59.451 | C162: 0.5325197281 | D162: 1.017480272 | E162: 0
B163: 59.85 | C163: 0.5220009701 | D163: 1.02799903 | E163: 0
B164: 60.249 | C164: 0.511689987 | D164: 1.038310013 | E164: 0
B165: 60.648 | C165: 0.5015826748 | D165: 1.048417325 | E165: 0
B166: 61.047 | C166: 0.4916750103 | D166: 1.05832499 | E166: 0
B167: 61.446 | C167: 0.4819630499 | D167: 1.06803695 | E167: 0
B168: 61.845 | C168: 0.4724429281 | D168: 1.077557072 | E168: 0
B169: 62.244 | C169: 0.4631108553 | D169: 1.086889145 | E169: 0
B170: 62.643 | C170: 0.4539631171 | D170: 1.096036883 | E170: 0
B171: 63.042 | C171: 0.4449960724 | D171: 1.105003928 | E171: 0
B172: 63.441 | C172: 0.436206152 | D172: 1.113793848 | E172: 0
B173: 63.84 | C173: 0.4275898572 | D173: 1.122410143 | E173: 0
B174: 64.239 | C174: 0.4191437584 | D174: 1.130856242 | E174: 0
B175: 64.638 | C175: 0.4108644937 | D175: 1.139135506 | E175: 0
B176: 65.037 | C176: 0.4027487677 | D176: 1.147251232 | E176: 0
B177: 65.436 | C177: 0.39479335 | D177: 1.15520665 | E177: 0
B178: 65.835 | C178: 0.3869950742 | D178: 1.163004926 | E178: 0
B179: 66.234 | C179: 0.3793508362 | D179: 1.170649164 | E179: 0
B180: 66.633 | C180: 0.3718575933 | D180: 1.178142407 | E180: 0
B181: 67.032 | C181: 0.364512363 | D181: 1.185487637 | E181: 0
B182: 67.431 | C182: 0.3573122215 | D182: 1.192687778 | E182: 0
B183: 67.83 | C183: 0.3502543031 | D183: 1.199745697 | E183: 0
B184: 68.229 | C184: 0.3433357984 | D184: 1.206664202 | E184: 0
B185: 68.628 | C185: 0.3365539535 | D185: 1.213446047 | E185: 0
B186: 69.027 | C186: 0.329906069 | D186: 1.220093931 | E186: 0
B187: 69.426 | C187: 0.323389499 | D187: 1.226610501 | E187: 0
B188: 69.825 | C188: 0.3170016494 | D188: 1.232998351 | E188: 0
B189: 70.224 | C189: 0.3107399778 | D189: 1.239260022 | E189: 0
B190: 70.623 | C190: 0.3046019918 | D190: 1.245398008 | E190: 0
B191: 71.022 | C191: 0.2985852482 | D191: 1.251414752 | E191: 0
B192: 71.421 | C192: 0.2926873522 | D192: 1.257312648 | E192: 0
B193: 71.82 | C193: 0.2869059562 | D193: 1.263094044 | E193: 0
B194: 72.219 | C194: 0.2812387589 | D194: 1.268761241 | E194: 0
B195: 72.618 | C195: 0.2756835047 | D195: 1.274316495 | E195: 0
B196: 73.017 | C196: 0.2702379824 | D196: 1.279762018 | E196: 0
B197: 73.416 | C197: 0.2649000244 | D197: 1.285099976 | E197: 0
B198: 73.815 | C198: 0.259667506 | D198: 1.290332494 | E198: 0
B199: 74.214 | C199: 0.2545383445 | D199: 1.295461655 | E199: 0
B200: 74.613 | C200: 0.2495104984 | D200: 1.300489502 | E200: 0
B201: 75.012 | C201: 0.2445819663 | D201: 1.305418034 | E201: 0
... 62 more rows
